bitfinex/quotes_ETHUSD_20220120
["timestamp","ask_amount","ask_price","bid_price","bid_amount"]
[1642709777125,2.37156206,3205.0,3204.9,0.0032162]
[1642709778022,2.67156206,3205.0,3204.9,0.0032162]
[1642709778224,2.79626206,3205.0,3204.9,0.0032162]
[1642709779122,2.49626206,3205.0,3204.9,0.0032162]
[1642709779324,2.37156206,3205.0,3204.9,0.0032162]
[1642709782967,0.3,3204.9,3204.3,0.1248]
[1642709783170,2.37156206,3204.8,3204.4,0.1650373]
[1642709783470,1.22708,3205.3,3204.4,0.00284212]
[1642709783669,1.22708,3205.3,3204.5,0.1247]
[1642709783869,1.22708,3205.3,3204.5,0.64862299]
[1642709783870,0.00170527,3205.2,3204.5,0.64862299]
[1642709784066,0.00170527,3205.2,3204.6,0.00170527]
[1642709784266,0.00113684,3205.1,3204.7,1.31390852]
[1642709784514,0.00113684,3205.1,3204.8,0.89089106]
[1642709784721,0.00170527,3205.2,3204.9,0.1247]
[1642709785117,0.00113684,3205.1,3204.9,0.1247]
[1642709785519,0.00397896,3205.6,3204.9,0.1247]
[1642709785719,0.00397896,3205.6,3205.5,2.5652435]
[1642709785918,0.1247,3206.1,3205.5,2.5652435]
[1642709786119,1.8019303,3206.2,3205.5,2.5652435]
[1642709786318,0.00568423,3205.9,3205.5,2.5652435]
[1642709786720,0.00511581,3205.8,3205.5,2.5652435]
[1642709787121,0.00454738,3205.7,3204.9,0.1247]
[1642709787525,1.25708,3206.0,3204.9,0.1247]
[1642709787526,0.00397896,3205.6,3204.9,0.1247]
[1642709787923,0.00341054,3205.5,3204.9,0.1247]
[1642709788123,0.00341054,3205.5,3205.2,1.11559963]
[1642709788386,3.7614,3205.8,3205.2,1.11559963]
[1642709788387,0.00284211,3205.4,3205.2,1.11559963]
[1642709788787,1.22708,3205.7,3205.2,1.11559963]
[1642709788788,0.00227369,3205.3,3205.2,1.11559963]
[1642709790689,0.00227369,3205.3,3205.2,2.55245503]
[1642709791293,0.00227369,3205.3,3205.2,6.90245503]
[1642709792229,0.00227369,3205.3,3205.2,1.11559963]
[1642709793229,0.00227369,3205.3,3204.7,0.1247]
[1642709793629,0.00170527,3205.2,3204.7,0.1247]
[1642709794027,0.00113684,3205.1,3204.7,0.1247]
[1642709794428,0.3,3205.6,3204.9,0.85697509]
[1642709794429,0.00341054,3205.5,3204.9,0.85697509]
[1642709794828,0.00284211,3205.4,3204.9,0.85697509]
[1642709795129,0.00284211,3205.4,3204.6,0.12640527]
[1642709795130,0.00227369,3205.3,3204.6,0.12640527]
[1642709795333,0.00227369,3205.3,3204.6,0.00170527]
[1642709795531,1.08018,3205.4,3204.4,4.2995]
[1642709795532,0.00170527,3205.2,3204.7,0.00113685]
[1642709795781,0.00170527,3205.2,3204.4,4.2995]
[1642709795782,0.00170527,3205.2,3204.5,0.1269737]
[1642709795981,0.3,3205.6,3204.6,1.3869679]
[1642709795982,0.00113684,3205.1,3204.6,1.3869679]
[1642709796182,0.00113684,3205.1,3204.7,1.15385906]
[1642709796381,0.1247,3205.6,3204.7,1.15499591]
[1642709796382,0.00341054,3205.5,3204.7,1.15499591]
[1642709796783,0.00284211,3205.4,3204.7,1.15499591]
[1642709797183,0.6,3205.6,3204.7,0.00113685]
[1642709797184,0.00227369,3205.3,3204.7,0.00113685]
[1642709797585,0.00170527,3205.2,3204.7,0.00113685]
[1642709797883,3.61697339,3205.6,3204.6,0.00170527]
[1642709797884,0.00113684,3205.1,3204.6,0.00170527]
[1642709798288,0.78019,3205.4,3204.9,1.11124886]
[1642709798686,0.78019,3205.4,3204.9,2.59191874]
[1642709798687,0.00227369,3205.3,3204.9,2.59191874]
[1642709799084,0.00170527,3205.2,3204.9,1.11124886]
[1642709799550,0.00113684,3205.1,3204.9,1.11124886]
[1642709799949,0.6,3205.4,3204.9,1.11124886]
[1642709800150,0.00341054,3205.5,3204.9,2.42555263]
[1642709800350,0.00227369,3205.3,3204.9,2.42555263]
[1642709800551,0.00284211,3205.4,3204.9,2.42555263]
[1642709800753,0.6,3205.6,3204.9,2.42555263]
[1642709800754,0.00170527,3205.2,3204.9,2.42555263]
[1642709800950,0.6,3205.6,3204.9,2.42555263]
[1642709800951,0.00227369,3205.3,3204.9,2.42555263]
[1642709801152,0.00113684,3205.1,3204.9,2.42555263]
[1642709801351,0.00170527,3205.2,3204.9,2.42555263]
[1642709801549,0.00341054,3205.5,3204.9,2.42555263]
[1642709801750,0.00113684,3205.1,3204.9,2.42555263]
[1642709801949,0.78009,3205.5,3204.9,2.42555263]
[1642709801950,0.00284211,3205.4,3204.9,2.42555263]
[1642709802349,0.00227369,3205.3,3204.9,2.42555263]
[1642709802749,0.00170527,3205.2,3204.9,2.42555263]
[1642709803268,0.00113684,3205.1,3204.9,2.42555263]
[1642709803471,0.000173,3205.1,3204.9,1.11124886]
[1642709803672,2.34470272,3205.4,3204.9,1.11124886]
[1642709804071,2.34317046,3205.3,3204.9,2.11124886]
[1642709804270,2.34186061,3205.2,3205.0,0.1247]
[1642709804473,2.34186061,3205.1,3205.0,0.1247]
[1642709804671,2.34186061,3205.1,3205.0,0.30411266]
[1642709804871,1.22708,3205.7,3205.0,0.30411266]
[1642709804872,0.0024467,3205.5,3205.3,1.54218558]
[1642709805273,0.00187827,3205.4,3205.3,1.54218558]
[1642709807241,0.00187827,3205.4,3205.3,4.64658002]
[1642709807439,0.00187827,3205.4,3205.3,4.82538485]
[1642709807638,0.00187827,3205.4,3205.3,5.65008485]
[1642709807841,0.00187827,3205.4,3205.3,2.84569041]
[1642709808042,0.00187827,3205.4,3205.3,5.74569041]
[1642709808244,0.00187827,3205.4,3205.3,6.74569041]
[1642709808643,0.00187827,3205.4,3205.3,9.56660734]
[1642709808843,1.22708,3205.7,3205.4,6.2]
[1642709809144,1.22708,3205.7,3205.5,22.83560126]
[1642709809145,0.00113685,3205.6,3205.5,22.83560126]
[1642709809342,0.00113685,3205.6,3205.5,6.12970453]
[1642709809742,0.00113685,3205.6,3205.5,6.42970453]
[1642709810143,0.00113685,3205.6,3205.5,24.57970453]
[1642709810643,0.00113685,3205.6,3205.5,6.42970453]
[1642709810867,0.00113685,3205.6,3205.5,2.9229081]
[1642709811071,0.00113685,3205.6,3205.5,4.87501645]
[1642709811266,0.00113685,3205.6,3205.5,5.87501645]
[1642709811873,0.00113685,3205.6,3205.5,23.72501645]
[1642709812974,0.00113685,3205.6,3205.5,22.72501645]
[1642709813372,0.00113685,3205.6,3205.5,1.6229081]
[1642709813580,0.00113685,3205.6,3205.5,1.1759081]
[1642709813974,0.00113685,3205.6,3205.5,0.99710327]
[1642709814619,0.00113685,3205.6,3205.5,4.45287051]
[1642709814817,0.00113685,3205.6,3205.5,2.06304377]
[1642709815019,0.00113685,3205.6,3205.5,8.71304377]
[1642709815219,0.00113685,3205.6,3205.5,7.71304377]
[1642709815418,0.00113685,3205.6,3205.5,8.71304377]
[1642709815619,0.00113685,3205.6,3205.5,26.86304377]
[1642709816821,0.00113685,3205.6,3205.5,27.16304377]
[1642709817023,0.00113685,3205.6,3205.5,9.01304377]
[1642709817223,0.00113685,3205.6,3205.5,11.85724749]
[1642709817623,0.00113685,3205.6,3205.5,30.00724749]
[1642709818270,0.00113685,3205.6,3205.5,29.70724749]
[1642709819167,0.00113685,3205.6,3205.5,11.55724749]
[1642709819369,0.00113685,3205.6,3205.5,29.70724749]
[1642709819569,0.00113685,3205.6,3205.5,11.55724749]
[1642709820170,0.00113685,3205.6,3205.5,5.60724749]
[1642709820371,0.00113685,3205.6,3205.5,5.90724749]
[1642709820669,0.00113685,3205.6,3205.5,24.05724749]
[1642709821069,0.00113685,3205.6,3205.5,23.93254749]
[1642709822319,0.00113685,3205.6,3205.5,23.48554749]
[1642709822717,0.00113685,3205.6,3205.5,2.49134377]
[1642709822919,0.00113685,3205.6,3205.5,2.63834377]
[1642709823321,0.00113685,3205.6,3205.5,2.74410327]
[1642709823621,0.00113685,3205.6,3205.5,2.98712333]
[1642709823822,0.00113685,3205.6,3205.5,5.74399011]
[1642709824120,0.00113685,3205.6,3205.5,26.4377551]
[1642709825865,0.00113685,3205.6,3205.5,25.9907551]
[1642709826269,0.00113685,3205.6,3205.5,23.93712333]
[1642709826473,3.685e-05,3205.6,3205.5,23.93712333]
[1642709826670,3.685e-05,3205.6,3205.5,55.87056232]
[1642709826969,0.03,3206.0,3205.7,18.25180261]
[1642709827168,0.03,3206.0,3205.8,4.78854932]
[1642709827368,0.03,3206.0,3205.9,18.39302006]
[1642709827567,0.03,3206.0,3205.9,20.14002006]
[1642709827769,0.03227369,3206.0,3205.9,20.14002006]
[1642709828167,0.03227369,3206.0,3205.9,1.99002006]
[1642709828369,0.03227369,3206.0,3205.9,5.49002006]
[1642709828570,0.03227369,3206.0,3205.9,4.79211852]
[1642709828972,0.03227369,3206.0,3205.9,23.36681852]
[1642709829371,0.03227369,3206.0,3205.9,23.06681852]
[1642709829616,0.03227369,3206.0,3205.9,20.26472006]
[1642709830015,0.03227369,3206.0,3205.9,20.44002006]
[1642709830415,0.03227369,3206.0,3205.9,20.14002006]
[1642709830821,0.03227369,3206.0,3205.9,0.447]
[1642709832528,0.03227369,3206.0,3205.6,1.204]
[1642709832529,2.26443923,3206.0,3205.6,1.204]
[1642709832725,2.23216554,3205.9,3205.4,0.1247]
[1642709832924,2.23387081,3205.9,3205.4,0.1247]
[1642709833124,0.00113685,3205.8,3205.4,1.42147547]
[1642709833874,0.00113685,3205.8,3205.7,1.03118015]
[1642709834874,0.00113685,3205.8,3205.7,4.68118015]
[1642709835076,0.00991597,3206.0,3205.8,3.5]
[1642709835473,0.00991597,3206.0,3205.9,1.0]
[1642709835974,2.24510548,3206.0,3205.8,1.0]
[1642709836175,0.01105281,3206.0,3205.8,1.0]
[1642709838525,2.23764432,3205.9,3205.6,1.0]
[1642709838726,2.23764432,3205.9,3205.0,4.7241381]
[1642709838727,0.77999,3205.7,3205.0,3.1646]
[1642709838932,0.78004,3205.5,3205.0,3.1646]
[1642709839125,0.78004,3205.5,3205.1,0.00397897]
[1642709839333,2.23477456,3205.4,3205.1,0.00397897]
[1642709839726,2.23477456,3205.4,3205.2,1.1107649]
[1642709839928,2.23477456,3205.4,3204.6,0.00682108]
[1642709840228,2.23477456,3205.4,3204.7,0.30559978]
[1642709840229,0.3,3205.4,3204.7,0.30559978]
[1642709840429,2.23453322,3205.3,3204.7,0.30559978]
[1642709840627,0.3,3205.3,3204.8,0.00568424]
[1642709840871,8.64617674,3205.8,3204.9,0.30618201]
[1642709841070,2.23520507,3205.7,3204.9,0.30618201]
[1642709841272,2.53520507,3205.7,3205.0,0.00454739]
[1642709841473,2.23520507,3205.6,3205.0,0.00454739]
[1642709841876,2.23520507,3205.6,3204.9,1.00511581]
[1642709842075,2.23520507,3205.5,3205.0,0.31014829]
[1642709842276,5.0517,3205.8,3205.1,0.3056009]
[1642709842475,5.0517,3205.8,3205.0,0.00454739]
[1642709842476,2.23592538,3205.7,3205.0,0.00454739]
[1642709842676,2.23592538,3205.7,3205.2,0.00341054]
[1642709842881,2.23592538,3205.7,3205.0,0.00454739]
[1642709843578,2.23592538,3205.7,3205.3,0.907355]
[1642709843980,2.23592538,3205.7,3205.4,0.0022737]
[1642709845326,2.23592538,3205.7,3205.2,0.30914362]
[1642709845528,2.23592538,3205.7,3205.2,0.00341054]
[1642709845728,4.99430254,3205.7,3205.3,0.00284212]
[1642709845927,2.23592538,3205.6,3205.3,0.00284212]
[1642709846128,3.84453739,3205.8,3205.3,0.00284212]
[1642709846129,2.23592538,3205.5,3205.3,0.00284212]
[1642709846327,2.23592538,3205.4,3204.9,0.00511581]
[1642709846528,2.23592538,3205.3,3205.0,0.00454739]
[1642709846728,2.23592538,3205.2,3204.9,0.00511581]
[1642709846932,2.23592538,3205.1,3204.8,0.07981581]
[1642709847229,0.00397896,3205.6,3204.9,0.30651493]
[1642709847432,2.23718765,3205.5,3204.9,0.30651493]
[1642709847629,2.24059819,3205.5,3204.7,0.1247]
[1642709847831,2.24002976,3205.4,3204.8,0.3065338]
[1642709848030,2.23718765,3205.3,3204.8,0.3065338]
[1642709848279,2.23946134,3205.3,3204.8,0.3065338]
[1642709848474,3.8322,3205.8,3204.8,0.3065338]
[1642709848475,2.23889292,3205.2,3204.8,0.3065338]
[1642709848676,0.00170527,3205.2,3204.8,0.3065338]
[1642709848874,0.00113684,3205.1,3204.8,0.3065338]
[1642709849283,2.23765599,3205.7,3204.8,0.3065338]
[1642709849479,2.23310861,3205.6,3205.0,1.10442244]
[1642709849777,0.00341054,3205.5,3205.0,1.10442244]
[1642709849975,2.23651915,3205.5,3205.1,0.30699514]
[1642709850275,3.8322,3205.8,3205.1,0.30699514]
[1642709850276,2.23595072,3205.4,3205.1,0.30699514]
[1642709850475,2.23310861,3205.3,3205.0,1.10442244]
[1642709850674,2.23310861,3205.2,3204.9,1.0]
[1642709850876,2.23310861,3205.1,3204.8,0.447]
[1642709851074,0.00113684,3205.1,3204.9,0.30707688]
[1642709851276,0.00113684,3205.1,3204.7,1.1247]
[1642709851576,0.00113684,3205.1,3204.8,0.30706684]
[1642709854327,2.13483514,3205.7,3204.9,4.15]
[1642709854531,2.13483514,3205.7,3204.6,1.5819]
[1642709854728,2.13483514,3205.7,3204.9,0.00113684]
[1642709854729,0.00284212,3205.6,3204.9,0.00113684]
[1642709855129,0.3,3205.7,3204.9,0.00113684]
[1642709855130,0.0022737,3205.5,3204.9,0.00113684]
[1642709855328,0.0022737,3205.5,3205.0,1.14846807]
[1642709855529,3.8322,3205.8,3205.0,1.14846807]
[1642709855530,0.00170527,3205.4,3205.0,1.14846807]
[1642709855975,0.00113685,3205.3,3205.0,1.14846807]
[1642709856175,0.00113685,3205.3,3204.8,0.12640527]
[1642709856375,0.00341054,3205.7,3204.8,0.12640527]
[1642709856576,0.00341054,3205.7,3204.8,0.42640527]
[1642709856778,0.00341054,3205.7,3204.8,0.44870527]
[1642709857178,0.00341054,3205.7,3204.8,0.74870527]
[1642709857575,0.00341054,3205.7,3204.8,18.89870527]
[1642709857775,0.00341054,3205.7,3205.2,0.82114221]
[1642709858976,0.30341054,3205.7,3205.2,0.82114221]
[1642709859625,0.30341054,3205.7,3205.2,1.12114221]
[1642709859626,0.00341054,3205.7,3205.2,1.12114221]
[1642709859831,0.00341054,3205.7,3205.2,19.71814221]
[1642709860022,0.00341054,3205.7,3205.3,0.20162299]
[1642709860226,0.00341054,3205.7,3205.3,1.20162299]
[1642709860428,0.00341054,3205.7,3205.4,0.07692299]
[1642709860627,0.00341054,3205.7,3205.5,0.1247]
[1642709861032,0.00341054,3205.7,3205.5,18.2747]
[1642709861428,0.00341054,3205.7,3205.6,6.9]
[1642709861631,0.00341054,3205.7,3205.6,7.0247]
[1642709861929,0.00341054,3205.7,3205.6,1.1247]
[1642709862131,0.00341054,3205.7,3205.6,0.1247]
[1642709862530,0.00341054,3205.7,3205.6,3.1247]
[1642709862929,0.00341054,3205.7,3205.6,4.1247]
[1642709863373,0.00341054,3205.7,3205.6,22.2747]
[1642709864673,0.00341054,3205.7,3205.6,1.1247]
[1642709864878,0.00341054,3205.7,3205.6,1.0]
[1642709865075,0.00341054,3205.7,3205.3,2.631]
[1642709865378,0.00341054,3205.7,3205.3,1.631]
[1642709865675,0.00341054,3205.7,3205.4,1.0]
[1642709865877,0.00341054,3205.7,3205.4,0.3]
[1642709866075,0.00341054,3205.7,3205.3,2.631]
[1642709869328,0.00341054,3205.7,3205.3,2.5063]
[1642709871975,0.00341054,3205.7,3205.3,20.6563]
[1642709872478,0.00341054,3205.7,3205.3,21.43605]
[1642709873380,0.00341054,3205.7,3205.3,3.28605]
[1642709873580,0.00341054,3205.7,3205.3,2.5063]
[1642709874380,0.00341054,3205.7,3205.4,0.34167848]
[1642709874625,0.00341054,3205.7,3205.4,0.64167848]
[1642709874825,0.00341054,3205.7,3205.3,1.3]
[1642709875025,0.00341054,3205.7,3205.4,0.34173253]
[1642709875226,0.00341054,3205.7,3205.4,0.64173253]
[1642709875427,0.00341054,3205.7,3205.4,0.3]
[1642709875624,0.00341054,3205.7,3205.3,1.0]
[1642709876024,0.00341054,3205.7,3205.4,0.64181457]
[1642709876225,0.00341054,3205.7,3205.2,2.99284221]
[1642709876428,0.00341054,3205.7,3205.3,0.3418557]
[1642709879474,0.00341054,3205.7,3205.3,18.4918557]
[1642709879675,0.00341054,3205.7,3205.4,1.3418557]
[1642709879875,0.00341054,3205.7,3205.5,18.4918557]
[1642709880075,0.00341054,3205.7,3205.6,23.6918557]
[1642709880679,0.00341054,3205.7,3205.6,19.4918557]
[1642709881076,0.00341054,3205.7,3205.6,1.3418557]
[1642709881276,0.00341054,3205.7,3205.6,0.3429639]
[1642709881477,0.00341054,3205.7,3205.3,1.0]
[1642709881678,0.00341054,3205.7,3205.2,0.82114221]
[1642709881878,0.00341054,3205.7,3205.3,0.35629587]
[1642709882526,0.00341054,3205.7,3205.3,0.35544704]
[1642709883334,0.00341054,3205.7,3205.2,0.82114221]
[1642709883529,0.00341054,3205.7,3205.2,18.97114221]
[1642709883929,0.00341054,3205.7,3205.3,19.15]
[1642709884628,0.00341054,3205.7,3205.3,1.0]
[1642709885030,0.00341054,3205.7,3205.3,18.15]
[1642709885429,0.00341054,3205.7,3205.4,19.9297333]
[1642709885782,0.00341054,3205.7,3205.4,1.0]
[1642709886172,0.00341054,3205.7,3205.2,0.82114221]
[1642709888286,0.00341054,3205.7,3205.2,1.60096871]
[1642709888486,0.00341054,3205.7,3205.2,0.82114221]
[1642709888684,0.00341054,3205.7,3205.3,18.15]
[1642709889086,0.00341054,3205.7,3205.4,1.0]
[1642709890427,0.00341054,3205.7,3205.4,19.15]
[1642709891831,0.00341054,3205.7,3205.4,1.0]
[1642709892129,0.00341054,3205.7,3205.3,2.5594582]
[1642709893135,0.00341054,3205.7,3205.3,2.55486762]
[1642709894379,0.00341054,3205.7,3205.3,1.0]
[1642709894578,0.00341054,3205.7,3205.2,3.38061721]
[1642709894777,0.00341054,3205.7,3205.2,2.38061721]
[1642709894977,0.00341054,3205.7,3205.2,3.38061721]
[1642709895179,0.00341054,3205.7,3205.2,1.82114221]
[1642709895579,0.00341054,3205.7,3205.0,3.0183]
[1642709895781,1.50534084,3205.7,3205.0,3.0183]
[1642709895978,3.1229069,3205.6,3205.0,3.0183]
[1642709896182,1.50534084,3205.7,3204.9,0.4664878]
[1642709896380,0.0022737,3205.5,3204.9,0.4664878]
[1642709896578,0.0022737,3205.5,3204.9,1.31362052]
[1642709896778,0.00170527,3205.4,3204.9,1.31362052]
[1642709897026,0.00170527,3205.4,3204.9,0.84713272]
[1642709897228,0.00113685,3205.3,3204.9,0.84713272]
[1642709897830,0.00113685,3205.3,3204.5,3.4033]
[1642709898229,0.00113685,3205.3,3204.6,0.00284211]
[1642709899030,0.00113685,3205.3,3204.8,1.14661639]
[1642709899431,0.00113685,3205.3,3204.9,0.00113684]
[1642709899631,0.00113685,3205.3,3204.9,0.12583684]
[1642709900535,0.00113685,3205.3,3204.9,0.00113684]
[1642709902677,0.00113685,3205.3,3204.9,0.36391856]
[1642709904083,2.18972307,3205.3,3204.9,0.36391856]
[1642709904282,2.18858622,3205.2,3204.9,0.36391856]
[1642709904528,2.18858622,3205.1,3204.9,0.36391856]
[1642709904734,2.18858622,3205.0,3204.9,0.36391856]
[1642709905133,0.00113685,3205.3,3204.9,0.36391856]
[1642709908038,2.18972307,3205.3,3204.9,0.36391856]
[1642709908279,2.18858622,3205.2,3204.9,0.36391856]
[1642709908476,2.18858622,3205.1,3204.9,0.36391856]
[1642709908877,0.00113685,3205.3,3204.9,0.36391856]
[1642709910080,0.00113685,3205.3,3204.9,0.00113684]
[1642709910579,0.00113685,3205.3,3204.8,0.00170527]
[1642709910779,2.19027715,3205.3,3204.8,0.00170527]
[1642709910978,2.1891403,3205.2,3204.7,0.00227369]
[1642709911178,1.44454955,3204.8,3204.7,0.00227369]
[1642709911384,4.9632773,3205.1,3204.7,0.00227369]
[1642709911385,2.1891403,3205.0,3204.7,0.00227369]
[1642709911581,0.78015,3205.2,3204.7,0.36630399]
[1642709911582,2.1891403,3204.9,3204.7,0.36630399]
[1642709911779,2.1891403,3204.8,3204.7,0.00227369]
[1642709912031,2.1891403,3204.8,3204.5,0.36429695]
[1642709912230,2.1891403,3204.7,3204.5,0.36429695]
[1642709912430,1.1831257,3204.6,3204.0,1.84999869]
[1642709912630,1.1831257,3204.6,3204.0,1.70259869]
[1642709912833,1.1831257,3204.6,3204.1,0.00568423]
[1642709913034,1.1831257,3204.6,3204.1,2.06720232]
[1642709913233,5.1252,3205.2,3204.1,2.06720232]
[1642709913535,2.1814278,3205.1,3204.2,0.01782116]
[1642709913734,2.1814278,3205.1,3204.2,1.28036421]
[1642709913735,2.18061773,3205.1,3204.2,1.28036421]
[1642709913932,2.18061773,3205.1,3204.3,0.00454738]
[1642709914335,2.18061773,3205.1,3204.4,0.93519807]
[1642709914535,2.18061773,3205.1,3204.6,0.97886859]
[1642709914936,2.18061773,3205.1,3204.7,0.00227369]
[1642709917491,2.18061773,3205.1,3204.7,1.00227369]
[1642709917688,2.18061773,3205.1,3204.7,0.00227369]
[1642709917890,2.18061773,3205.1,3204.8,0.00170527]
[1642709918086,2.18061773,3205.1,3204.7,0.00227369]
[1642709918487,2.18061773,3205.1,3204.6,0.00284211]
[1642709919292,2.18061773,3205.1,3204.8,0.82071195]
[1642709919733,2.18061773,3205.1,3204.9,0.00113684]
[1642709926378,2.17950673,3205.1,3204.9,0.00113684]
[1642709926781,3.50967106,3205.1,3204.9,0.00113684]
[1642709927029,1.33016433,3205.1,3204.9,0.00113684]
[1642709927231,3.9396,3205.2,3204.9,0.00113684]
[1642709928029,4.2396,3205.2,3204.9,0.00113684]
[1642709928628,5.52658877,3205.2,3204.9,0.00113684]
[1642709928830,5.22658877,3205.2,3204.9,0.00113684]
[1642709929330,3.9396,3205.2,3204.9,0.00113684]
[1642709930331,5.49545182,3205.2,3204.9,0.00113684]
[1642709930530,6.27558182,3205.2,3204.9,0.00113684]
[1642709930991,6.27558182,3205.2,3204.4,0.00397896]
[1642709931195,6.27558182,3205.2,3204.4,18.15397896]
[1642709931196,3.9396,3205.2,3204.4,18.15397896]
[1642709931393,1.5019303,3205.6,3204.6,1.5596809]
[1642709931595,1.5019303,3205.8,3205.0,0.01227214]
[1642709931792,1.5019303,3205.8,3205.1,0.5717]
[1642709931793,0.00113685,3205.3,3205.1,0.5717]
[1642709931998,0.00113685,3205.3,3205.2,5.447]
[1642709932197,0.00113685,3205.3,3205.2,6.56696955]
[1642709932498,0.00113685,3205.3,3205.2,7.86696955]
[1642709932695,0.00113685,3205.3,3205.2,2.86696955]
[1642709933495,0.00113685,3205.3,3205.2,1.86696955]
[1642709933697,0.00113685,3205.3,3205.2,1.447]
[1642709933899,0.00113685,3205.3,3205.2,0.447]
[1642709934626,0.00113685,3205.3,3204.8,1.0]
[1642709935136,0.00113685,3205.3,3204.9,0.00113684]
[1642709936130,0.00113685,3205.3,3204.9,0.98819327]
[1642709937334,0.00113685,3205.3,3204.9,1.43519327]
[1642709937536,0.00113685,3205.3,3204.9,3.37190681]
[1642709937739,0.00113685,3205.3,3205.0,0.98142299]
[1642709937935,0.00113685,3205.3,3205.2,6.16249522]
[1642709938137,0.00113685,3205.3,3205.2,7.60949522]
[1642709938386,0.00113685,3205.3,3205.2,26.13641821]
[1642709939790,0.00113685,3205.3,3205.2,26.12392299]
[1642709940191,0.00113685,3205.3,3205.2,0.52392299]
[1642709940496,0.00113685,3205.3,3205.2,0.447]
[1642709940692,0.00113685,3205.3,3205.2,23.197]
[1642709941392,0.00113685,3205.3,3205.2,24.27673]
[1642709941592,0.00113685,3205.3,3205.2,26.30843]
[1642709946377,0.00030273,3205.3,3205.2,26.69167782]
[1642709947182,0.00030273,3205.3,3205.2,22.09167782]
[1642709947383,0.00030273,3205.3,3205.2,20.75997782]
[1642709947585,0.00030273,3205.3,3205.2,1.83024782]
[1642709947984,0.00030273,3205.3,3205.2,0.83024782]
[1642709949186,0.00030273,3205.3,3205.2,0.447]
[1642709949525,2.17171745,3205.3,3205.2,0.447]
[1642709949928,2.17171745,3205.3,3204.9,0.46808948]
[1642709950128,2.17141472,3205.2,3205.0,0.3905509]
[1642709950426,2.17141472,3205.1,3205.0,0.3905509]
[1642709950835,2.17141472,3205.1,3205.0,0.39195344]
[1642709954382,2.17141472,3205.1,3205.0,0.34195344]
[1642709954783,0.00030273,3205.3,3205.0,0.34195344]
[1642709954984,0.00030273,3205.3,3205.0,1.12180344]
[1642709955183,0.00030273,3205.3,3205.1,0.78068822]
[1642709957230,0.00030273,3205.3,3205.1,0.00083412]
[1642709962376,3.6805,3205.7,3205.1,0.00083412]
[1642709962581,3.9805,3205.7,3205.1,0.00083412]
[1642709962776,0.002008,3205.6,3205.1,0.00083412]
[1642709963179,0.00143958,3205.5,3205.1,0.00083412]
[1642709963581,0.00087115,3205.4,3205.1,0.00083412]
[1642709968592,0.00087115,3205.4,3205.1,0.78065412]
[1642709968886,0.00087115,3205.4,3205.1,3.49316903]
[1642709969088,0.00087115,3205.4,3205.1,5.35275973]
[1642709969288,0.00087115,3205.4,3205.2,1.447]
[1642709969488,0.00087115,3205.4,3205.3,24.72786222]
[1642709969688,0.00087115,3205.4,3205.3,25.72786222]
[1642709969890,0.00087115,3205.4,3205.3,22.95]
[1642709971189,0.00087115,3205.4,3205.3,23.25]
[1642709971789,0.00087115,3205.4,3205.3,23.3747]
[1642709972226,0.00087115,3205.4,3205.3,24.1544865]
[1642709973033,0.00087115,3205.4,3205.3,20.3544865]
[1642709973634,0.00087115,3205.4,3205.3,20.87840949]
[1642709973833,0.00087115,3205.4,3205.3,21.97110949]
[1642709974236,0.00087115,3205.4,3205.3,22.36274694]
[1642709974435,1.80919582,3205.9,3205.5,18.15]
[1642709974734,0.00991597,3206.0,3205.6,21.31860695]
[1642709974735,0.0022737,3205.8,3205.6,21.31860695]
[1642709974933,0.0022737,3205.8,3205.6,3.24552994]
[1642709975134,0.00170527,3205.7,3205.6,21.39552994]
[1642709976012,5.27e-06,3205.7,3205.6,21.39552994]
[1642709976214,0.00991597,3206.0,3205.7,0.03157369]
[1642709976414,0.00991597,3206.0,3205.8,6.85656057]
[1642709976612,1.5019303,3206.9,3205.9,6.15]
[1642709976815,1.5019303,3206.9,3206.0,18.7217]
[1642709977017,0.00454739,3206.7,3206.2,1.10789333]
[1642709977217,0.00454739,3206.7,3206.3,18.7217]
[1642709977418,0.00397897,3206.6,3206.3,18.7217]
[1642709977617,0.00397897,3206.6,3206.3,18.79862299]
[1642709977820,0.00341054,3206.5,3206.4,0.07692299]
[1642709978018,0.00341054,3206.5,3206.4,24.82392299]
[1642709978219,1.19572064,3207.1,3206.5,6.15]
[1642709978420,0.77947,3207.5,3206.6,18.597]
[1642709978421,5.07893074,3207.5,3206.6,18.597]
[1642709978620,3.04516886,3207.7,3206.6,0.747]
[1642709978621,0.00341054,3207.1,3206.6,0.747]
[1642709978819,1.53187,3206.9,3206.6,0.747]
[1642709979218,0.00170527,3206.8,3206.6,1.68778042]
[1642709979630,2.71946043,3207.6,3206.6,3.24657672]
[1642709979631,0.77899588,3207.5,3206.6,3.24657672]
[1642709980029,1.08354327,3207.5,3206.6,3.24657672]
[1642709982039,1.23415586,3207.1,3206.6,3.24657672]
[1642709982437,0.00170527,3207.0,3206.6,3.24657672]
[1642709982741,0.00113685,3206.9,3206.6,21.39657672]
[1642709983139,1.55899,3207.8,3206.6,21.39657672]
[1642709983140,0.00397896,3207.4,3206.6,21.39657672]
[1642709983404,0.00397896,3207.4,3206.6,22.43627672]
[1642709983603,2.30909,3207.7,3206.6,22.43627672]
[1642709983604,0.00341054,3207.3,3206.6,22.43627672]
[1642709984003,0.00284212,3207.2,3206.6,22.43627672]
[1642709984203,1.30974726,3207.2,3206.6,22.43627672]
[1642709984403,0.00227369,3207.1,3206.6,22.43627672]
[1642709984609,0.00227369,3207.1,3206.7,0.77942]
[1642709984906,8.76755415,3208.1,3206.9,18.15]
[1642709984907,0.00170527,3207.0,3206.9,18.15]
[1642709985108,0.00170527,3207.0,3206.9,18.597]
[1642709985307,0.00170527,3207.0,3206.9,25.22246076]
[1642709985510,2.79086552,3208.7,3207.0,0.08048007]
[1642709985709,5.32231458,3209.0,3207.0,0.08048007]
[1642709985710,1.2473,3208.9,3207.3,0.77908]
[1642709985912,1.2473,3208.9,3207.6,0.01277672]
[1642709985913,0.00682108,3208.2,3207.6,0.01277672]
[1642709986109,0.00682108,3208.2,3207.7,0.1246]
[1642709986309,2.59710843,3209.2,3207.8,6.15]
[1642709986510,3.7264,3209.3,3207.9,0.65521488]
[1642709986710,0.00511581,3209.0,3208.3,0.77897]
[1642709986910,0.00511581,3209.0,3208.4,18.7216]
[1642709987149,3.7264,3209.3,3208.4,18.7216]
[1642709987150,0.00454739,3208.9,3208.4,18.85979997]
[1642709987544,0.00397896,3208.8,3208.4,18.85979997]
[1642709987744,0.00397896,3208.8,3208.5,0.98482963]
[1642709987945,0.00341054,3208.7,3208.6,4.397]
[1642709988347,0.00341054,3208.7,3208.6,0.447]
[1642709989146,3.67981054,3209.3,3208.8,0.7789664]
[1642709989546,0.00284212,3209.2,3208.8,1.0789664]
[1642709989946,0.00227369,3209.1,3208.8,1.0789664]